Cogmind - Beta 12 @@@ ROGUE MODE // 2023.03.23 @ 05:54:27 // Winter2019/RPGLIKE Player: ArabianSandBoa Result: Destroyed by G-67 Veteran with Field Laser Performance ------------- Evolutions (5) 2500 Regions Visited (30) 6000 Robots Destroyed (697) 3485 Value Destroyed (30706) 30706 Prototype IDs (68) 1360 Alien Tech Used (0) 0 Bonus (20528) 20528 TOTAL SCORE: 64579 Bonus ------- Triggered High Security 500 High Alert Combat Kills 11529 Follower Combat Kills 4130 Entered Garrisons 800 Aligned with FarCom 300 Met Data Miner 300 Met Imprinter 300 Was Imprinted 300 Met Warlord at Base 500 MAIN.C Attacked Warlord 500 Warlord Defense Kills 3702 Friendly Fire -2333 Cogmind --------- Core Integrity 0/750 Matter 280/300 Energy 800/800 System Corruption 1% Temperature Cool (90) Movement Rolling (175) Ox5 Location -5/Warlord Parts ------- > --- POWER (3) -------- Antimatter Reactor Antimatter Reactor Improved Quantum Reactor > --- PROPULSION (2) --- Armored Huge Wheel > --- UTILITY (11) ----- Improved Cooling System Weapon Mount (fused) Experimental Core Analyzer Improved Armor Integrity Analyzer 8R-AWN's Armor/EX Damper Plating (fused) > --- WEAPON (6) ------- Vortex Driver Vortex Driver Helical Railgun Helical Railgun > --- INVENTORY (6) ---- Experimental Thermal Shield Plasma Storm Peak State ------------ > --- POWER ------------ Antimatter Reactor Antimatter Reactor Improved Quantum Reactor > --- PROPULSION ------- Armored Huge Wheel > --- UTILITY ---------- Improved Cooling System Weapon Mount Experimental Core Analyzer Improved Armor Integrity Analyzer 8R-AWN's Armor/EX Damper Plating > --- WEAPON ----------- Gamma Rifle Vortex Driver Vortex Driver Helical Railgun Helical Railgun Helical Railgun > --- INVENTORY -------- Experimental Thermal Shield Plasma Storm [Rating: 169] Favorites ----------- Power Antimatter Reactor Engine F-cell Engine Power Core Light Neutrino Core Reactor Antimatter Reactor Propulsion Armored Huge Wheel Treads Improved Treads Leg Aluminum Leg Wheel Armored Huge Wheel Utility Salvage Targeting Computer Device Remote Force Field Storage Experimental Energy Well Processor Salvage Targeting Computer Hackware Hacking Suite Protection 8R-AWN's Armor/EX Weapon 8R-AWN's Boregun Energy Gun Storm Laser Energy Cannon Cooled Particle Cannon Ballistic Gun 8R-AWN's Boregun Ballistic Cannon Antimatter Cannon Launcher Rocket Array Slashing Weapon Katana Piercing Weapon CR-A16's Pointy Stick Build | -11 -10 -10 -9 -9 -9 -8 -8 -8 -8 -8 -8 -8 -7 -7 -7 -7 -6 -6 -6 -6 -6 -6 -6 -6 -6 -5 -5 -5 -5 -5 ------- Run | Jun Mat Min Mat Min Exi Min Mat Gar Mat Gar Mat Gar Fac Low Low Zio Pro Fac Was Fac Gar Fac Low Low Dat Pro Fac Upp Upp War Slots Evolved 18 | 4 2 1 3 . . . . 3 . . . . . . . 1 . 1 . 1 . 1 . . . . 1 . . . Power 2 | . . . 1 . . . . 1 . . . . . . . . . . . . . . . . . . . . . . Propulsion 1 | . 1 . . . . . . . . . . . . . . . . . . . . . . . . . . . . . Utility 10 | 3 1 1 1 . . . . 1 . . . . . . . 1 . . . . . 1 . . . . 1 . . . Weapon 5 | 1 . . 1 . . . . 1 . . . . . . . . . 1 . 1 . . . . . . . . . . Parts Attached 236 | 4 22 4 26 7 27 14 6 16 1 1 . 4 6 1 . 11 3 4 19 2 4 14 1 . . 7 7 2 1 22 Power 17 | . . 1 4 . 3 1 . 1 . . . . 1 . . . . . 3 . . 2 . . . . . . . 1 Engine 6 | . . 1 4 . . . . . . . . . . . . . . . . . . 1 . . . . . . . . Core 4 | . . . . . 2 . . 1 . . . . 1 . . . . . . . . . . . . . . . . . Reactor 7 | . . . . . 1 1 . . . . . . . . . . . . 3 . . 1 . . . . . . . 1 Propulsion 9 | 1 3 . 3 2 . . . . . . . . . . . . . . . . . . . . . . . . . . Treads 6 | . 2 . 3 1 . . . . . . . . . . . . . . . . . . . . . . . . . . Leg . | . . . . . . . . . . . . . . . . . . . . . . . . . . . . . . . Wheel 3 | 1 1 . . 1 . . . . . . . . . . . . . . . . . . . . . . . . . . Hover . | . . . . . . . . . . . . . . . . . . . . . . . . . . . . . . . Flight . | . . . . . . . . . . . . . . . . . . . . . . . . . . . . . . . Utility 140 | 2 9 2 7 3 13 13 6 14 . 1 . 4 1 1 . 7 3 1 16 1 4 11 1 . . 4 4 2 . 10 Device 91 | 2 5 . 5 1 7 8 3 11 . 1 . 3 . 1 . 1 2 1 11 1 4 10 . . . 2 4 2 . 6 Storage 3 | . . . . . . 1 . . . . . . . . . . . . 2 . . . . . . . . . . . Processor 21 | . 3 1 1 2 3 2 1 . . . . . . . . 2 1 . . . . . 1 . . 1 . . . 3 Hackware 5 | . 1 . . . . 1 1 . . . . 1 . . . 1 . . . . . . . . . . . . . . Protection 20 | . . 1 1 . 3 1 1 3 . . . . 1 . . 3 . . 3 . . 1 . . . 1 . . . 1 Artifact . | . . . . . . . . . . . . . . . . . . . . . . . . . . . . . . . Weapon 70 | 1 10 1 12 2 11 . . 1 1 . . . 4 . . 4 . 3 . 1 . 1 . . . 3 3 . 1 11 Energy Gun 11 | . 4 . . . . . . . . . . . 2 . . 1 . 1 . . . . . . . . 1 . 1 1 Energy Cannon 9 | . . 1 2 . . . . . . . . . 1 . . . . . . . . . . . . 1 . . . 4 Ballistic Gun 30 | 1 2 . 6 1 6 . . . 1 . . . . . . 2 . 2 . 1 . . . . . 2 1 . . 5 Ballistic Cannon 6 | . 1 . . 1 . . . 1 . . . . . . . . . . . . . 1 . . . . 1 . . 1 Launcher 6 | . 3 . 1 . 1 . . . . . . . 1 . . . . . . . . . . . . . . . . . Special Weapon . | . . . . . . . . . . . . . . . . . . . . . . . . . . . . . . . Impact Weapon . | . . . . . . . . . . . . . . . . . . . . . . . . . . . . . . . Slashing Weapon 7 | . . . 3 . 4 . . . . . . . . . . . . . . . . . . . . . . . . . Piercing Weapon 1 | . . . . . . . . . . . . . . . . 1 . . . . . . . . . . . . . . Special Melee Weapon . | . . . . . . . . . . . . . . . . . . . . . . . . . . . . . . . Unidentified Prototypes 34 | . . . 1 . 11 5 . . . . . . 1 . . 4 . 1 3 . . . . . . . 2 . . 6 Corrupted Parts 2 | . . . 1 . . . . . . . . . . . . . . . . . . . . . . . . . . 1 System Corruption 4 | . . . 3 . . . . . . . . . . . . . . . . . . . . . . . . . . 1 Parts Lost 7 | . . . 2 . . . 1 . . . . . . . . 1 . . . . . 1 . . . . 1 . . 1 Power . | . . . . . . . . . . . . . . . . . . . . . . . . . . . . . . . Propulsion 1 | . . . 1 . . . . . . . . . . . . . . . . . . . . . . . . . . . Utility 4 | . . . 1 . . . 1 . . . . . . . . 1 . . . . . 1 . . . . . . . . Weapon 2 | . . . . . . . . . . . . . . . . . . . . . . . . . . . 1 . . 1 Highest Loss Streak 2 | . . . 2 . . . 1 . . . . . . . . 1 . . . . . 1 . . . . 1 . . 1 To Critical Strikes . | . . . . . . . . . . . . . . . . . . . . . . . . . . . . . . . Average Slot Usage (%) 80 | . 96 99 98 96 83 85 90 91 93 94 94 93 93 94 94 63 54 67 62 52 55 62 71 71 71 70 66 68 68 58 Engine 4 | . 11 9 9 14 10 . . . . . . . . . . . . . . . . 2 4 4 4 4 4 4 4 3 Core 3 | . . . . . 2 7 7 8 11 11 11 11 10 11 11 11 11 10 4 . . . . . . . . . . . Reactor 5 | . . . . . 1 6 7 6 5 5 5 5 5 5 5 5 5 5 10 15 15 10 9 9 9 9 9 9 9 9 Treads 3 | . 6 19 15 8 . . . . . . . . . . . . . . . . . . . . . . . . . . Wheel 4 | . 6 . . 2 7 7 7 6 5 5 5 5 5 5 5 5 5 5 5 5 5 4 4 4 4 4 4 4 4 4 Device 18 | . 33 5 7 7 10 14 20 22 29 29 29 29 29 29 29 5 . 10 7 5 5 16 27 23 23 22 23 27 27 16 Processor 13 | . 7 33 31 34 27 21 15 17 11 11 11 11 11 11 11 11 11 15 10 5 5 4 4 9 9 8 4 4 4 1 Hackware 3 | . 8 9 8 7 4 . 6 6 5 5 5 4 1 . . 2 . . . . . . . . . . . . . . Protection 4 | . . . 5 . 2 7 5 . . . . . 3 5 5 11 15 10 11 10 10 7 4 4 4 3 4 4 4 8 Energy Gun 3 | . 13 15 . . . . . . . . . . 5 . . . 5 5 5 5 5 4 4 4 4 4 5 9 12 6 Energy Cannon 1 | . . 4 3 . . . . . . . . . 1 5 5 . . . . . . . . . . 2 . . . 4 Ballistic Gun 9 | . 7 . 12 20 8 21 21 19 22 23 23 23 12 11 11 3 . 4 5 6 10 6 4 4 4 4 6 4 . . Naked Turns . | . . . . . . . . . . . . . . . . . . . . . . . . . . . . . . . Heaviest Build 189 | 9 14 26 38 33 77 65 61 74 74 68 67 73 101 101 96 118 118 109 155 143 149 151 119 118 118 145 143 142 142 189 Greatest Support 46 | 16 46 46 46 43 40 28 28 28 28 28 28 28 28 28 28 28 28 28 28 28 28 28 28 28 28 28 28 28 28 28 Greatest Overweight (x) 9 | . 4 . 5 9 2 2 2 2 2 2 2 2 3 3 3 4 4 3 5 5 5 5 4 4 4 5 5 5 5 6 Average Overweight (x) 2 | . . . . . . 1 1 1 2 2 2 2 2 3 3 2 3 3 3 4 5 4 4 4 4 4 4 4 5 5 Largest Inventory Capacity 6 | . 2 2 4 4 5 6 6 6 6 6 6 6 6 6 6 6 6 6 6 6 6 6 6 6 6 6 6 6 6 6 Average Capacity 5 | . . 2 3 4 4 5 6 6 6 6 6 6 6 6 6 6 6 6 6 6 6 6 6 6 6 6 6 6 6 6 Most Carried 6 | . 2 2 4 4 5 6 6 6 6 6 6 6 6 6 6 6 6 6 6 6 6 6 5 6 6 6 6 6 6 6 Average Carried 4 | . . 1 3 3 3 5 5 5 6 6 6 6 6 6 6 5 5 5 5 5 5 5 5 5 6 5 5 5 6 5 Final Capacity 6 | . 2 2 4 4 5 6 6 6 6 6 6 6 6 6 6 6 6 6 6 6 6 6 6 6 6 6 6 6 6 6 Final Carried 6 | . 2 2 4 4 5 6 6 6 6 6 6 6 6 6 6 6 6 6 6 5 6 5 5 6 6 6 5 6 6 6 Class Distribution -------------------- 32% | Scavenger-Mutant 24% | Hacker-Mutant 21% | Hacker-Gunner 7% | Hacker-Executioner 3% | Hacker-Skirmisher 3% | Scavenger-Executioner Dominant Class ---------------- Hacker-Skirmisher | -10/Materials Hacker-Mutant | -10/Mines Hacker-Mutant | -9/Materials Hacker-Gunner | -9/Mines Hacker-Mutant | -9/Exiles Scavenger-Mutant | -8/Mines Scavenger-Mutant | -8/Materials Scavenger-Mutant | -8/Garrison Scavenger-Mutant | -8/Materials Scavenger-Mutant | -8/Garrison Scavenger-Mutant | -8/Materials Scavenger-Mutant | -8/Garrison Scavenger-Mutant | -7/Factory Scavenger-Mutant | -7/Lower Caves Scavenger-Mutant | -7/Lower Caves Hacker-Mutant | -7/Zion Hacker-Gunner | -6/Proximity Caves Hacker-Gunner | -6/Factory Hacker-Gunner | -6/Waste Hacker-Tank | -6/Factory Scavenger-Mutant | -6/Garrison Scavenger-Mutant | -6/Factory Hacker-Tank | -6/Lower Caves Hacker-Gunner | -6/Lower Caves Hacker-Gunner | -6/Data Miner Hacker-Gunner | -5/Proximity Caves Hacker-Gunner | -5/Factory Hacker-Executioner | -5/Upper Caves Hacker-Gunner | -5/Upper Caves Scavenger-Mutant | -5/Warlord Resources | -11 -10 -10 -9 -9 -9 -8 -8 -8 -8 -8 -8 -8 -7 -7 -7 -7 -6 -6 -6 -6 -6 -6 -6 -6 -6 -5 -5 -5 -5 -5 ----------- Run | Jun Mat Min Mat Min Exi Min Mat Gar Mat Gar Mat Gar Fac Low Low Zio Pro Fac Was Fac Gar Fac Low Low Dat Pro Fac Upp Upp War Matter Collected 14675 | 254 722 53 1826 455 465 910 1143 1680 577 1067 . 1276 798 138 516 40 80 56 216 116 358 928 99 106 . 96 424 35 34 207 Remotely 88 | . 88 . . . . . . . . . . . . . . . . . . . . . . . . . . . . . Salvage Created 30933 | 217 1623 506 2940 1180 380 842 2760 1617 1038 1090 . 1716 1199 367 915 . . 525 . 624 153 5830 578 375 . 412 2818 323 399 506 Parts 1657 | 15 79 33 217 55 71 73 166 129 71 84 . 88 91 13 42 . 1 18 7 24 13 128 12 9 . 31 136 18 12 21 Haulers Intercepted 27 | . 2 . 6 . . . 4 . 4 . . . 3 . . . . 2 . 1 . 4 . . . . 1 . . . Recyclers Shooed 10 | . 4 . 3 . . . 3 . . . . . . . . . . . . . . . . . . . . . . . Parts Field Recycled . | . . . . . . . . . . . . . . . . . . . . . . . . . . . . . . . Retrieved Matter . | . . . . . . . . . . . . . . . . . . . . . . . . . . . . . . . Parts Self-Destructed 165 | . . . . . . . . . . . . . . 13 42 3 2 . . . . . 12 12 . 48 . 21 12 . Prevented 5 | . . . . . . . . . . . . . . . . . 1 . . . . . 3 . . . . 1 . . Kills | -11 -10 -10 -9 -9 -9 -8 -8 -8 -8 -8 -8 -8 -7 -7 -7 -7 -6 -6 -6 -6 -6 -6 -6 -6 -6 -5 -5 -5 -5 -5 ------- Run | Jun Mat Min Mat Min Exi Min Mat Gar Mat Gar Mat Gar Fac Low Low Zio Pro Fac Was Fac Gar Fac Low Low Dat Pro Fac Upp Upp War Combat Hostiles Destroyed 527 | . 19 4 57 17 3 14 41 39 14 26 . 30 18 8 14 . 2 6 . 5 4 102 7 6 . 16 36 6 7 26 Guns 464 | . 18 4 45 17 2 14 41 39 14 26 . 30 13 5 14 . 2 6 . 5 4 94 7 6 . 15 31 6 6 . Cannons 41 | . . . 8 . . . . . . . . . . . . . . . . . . 5 . . . . 2 . . 26 AOE 15 | . 1 . 4 . 1 . . . . . . . 5 3 . . . . . . . . . . . . 1 . . . Classes Destroyed 29 | 3 5 . 5 2 1 1 3 2 . 1 . . . . . . . . . 2 . 1 . . . . 1 . . 2 Worker 24 | 2 3 1 1 1 . 2 3 . 2 . . . 3 . . . . 1 . . . 1 . . . . 4 . . . Builder 24 | . 3 . 5 . . 4 3 . 1 . . . 4 . . . . . . . . 1 . . . . 3 . . . Tunneler 15 | 5 1 1 . 2 . 2 . . 1 . . . . . . . . . . 2 . . . . . . 1 . . . Hauler 27 | . 2 . 6 . . . 4 . 4 . . . 3 . . . . 2 . 1 . 4 . . . . 1 . . . Recycler 32 | 1 7 6 2 5 . 1 3 . 2 . . . 1 . . . . . . . . 1 . . . . 3 . . . Carrier 6 | . . . . . . . 1 1 . . . . . . . . . . . 1 . 3 . . . . . . . . Mechanic 8 | . . . 2 . . . 1 . . . . . . . . . . . . . . 4 . . . . 1 . . . Operator 11 | . 2 . 2 . . . 2 . . . . . 2 . . . . . . . . 1 . . . . 2 . . . Turret 1 | . . . . . 1 . . . . . . . . . . . . . . . . . . . . . . . . . Watcher 23 | . 3 . 4 . . . 4 1 3 . . . . . . . . 2 . . . . . . . . 6 . . . Swarmer 83 | . . . 13 4 . 4 12 6 4 5 . 4 3 3 . . . 3 . . 1 . . 2 . 9 4 . 1 5 Saboteur 5 | . . . . . . . . . . . . . . . . . . . . . . 3 . . . . . . . 2 Grunt 243 | . 19 4 30 10 . 8 21 17 7 9 . 13 7 4 11 . 1 1 . 2 2 39 7 2 . 4 11 4 4 6 Brawler 19 | . . . 4 1 . . 2 3 . . . 1 1 . 1 . . . . . . 6 . . . . . . . . Duelist 21 | . . . 3 1 . . 1 2 . 1 . 1 2 . . . . . . . . 8 . 1 . . . . 1 . Protector 7 | . . . . . . . 1 . . . . . 2 . . . . . . . . 4 . . . . . . . . Sentry 38 | . . . 7 . . . 2 4 2 3 . 5 1 . 1 . . 1 . 1 . 3 . . . 1 6 . 1 . Demolisher 2 | . . . . . . . . . . . . . . . . . . . . 2 . . . . . . . . . . Specialist 7 | . . . . . . . . . . 4 . . . . . . . . . . . . . . . . 2 . . 1 Hunter 42 | . . . . . . 1 1 . 1 1 . 1 . 1 . . . . . . . 29 . . . 1 4 . . 2 Programmer 38 | . . . . . . . . 6 . 3 . 4 1 . . . . 1 . . 1 10 . . . . 8 2 . 2 Heavy 3 | . . . . . . . 1 . . . . . 1 . . . . . . . . . . . . . 1 . . . Behemoth 6 | . . . . . . . . 1 . . . 1 . . 1 . 1 . . . . . . 1 . 1 . . . . Striker 2 | . . . . . . . . . . . . . . . . . . . . . . . . . . . . . . 2 Executioner 6 | . . . . . . . . . . . . . . . . . . . . . . . . . . . . . . 6 Zionite 9 | . . . . 1 8 . . . . . . . . . . . . . . . . . . . . . . . . . Assembled 3 | . . . . 1 2 . . . . . . . . . . . . . . . . . . . . . . . . . Thug 8 | . . 3 1 1 . . . . . 1 . 1 . . . . . . . . . . . . . . . . . 1 Savage 1 | . . . . . . . . . . . . . . . . . . . . . . 1 . . . . . . . . Fireman 1 | . . . . . . . . . . . . . . . . . . . . . . . . . . . 1 . . . Mutant 1 | . . . . . . . . . . . . . . . . . . . . 1 . . . . . . . . . . Best Kill Streak 22 | 4 5 2 9 5 5 10 16 5 15 8 . 4 7 4 4 . 1 5 . 4 1 22 6 4 . 9 9 4 4 6 Combat Bots Only 20 | . 3 2 9 4 2 10 9 5 12 8 . 4 5 4 4 . 1 4 . 3 1 20 6 4 . 9 9 4 4 6 Max Kills in Single Turn 4 | 1 1 1 3 2 2 2 2 3 2 2 . 2 3 3 2 . 1 2 . 2 1 4 2 1 . 2 4 2 1 2 Gunslinging 1 | . . . 1 1 . . 1 . . . . . . . 1 . . . . . . 1 . . . . . . . . Exploded 3 | . 1 . 3 . 1 . . . . . . . 3 3 . . . . . . . . . . . . 1 . . . Melee . | . . . . . . . . . . . . . . . . . . . . . . . . . . . . . . . Uniques/NPCs Destroyed 5 | . . . . . 4 1 . . . . . . . . . . . . . . . . . . . . . . . . 8R-AWN (-9/Exiles) EX-BIN (-9/Exiles) EX-DEC (-9/Exiles) EX-HEX (-9/Exiles) AD-0RF (-8/Mines) Combat | -11 -10 -10 -9 -9 -9 -8 -8 -8 -8 -8 -8 -8 -7 -7 -7 -7 -6 -6 -6 -6 -6 -6 -6 -6 -6 -5 -5 -5 -5 -5 -------- Run | Jun Mat Min Mat Min Exi Min Mat Gar Mat Gar Mat Gar Fac Low Low Zio Pro Fac Was Fac Gar Fac Low Low Dat Pro Fac Upp Upp War Damage Taken 15520 | . 550 408 2529 340 824 734 649 515 460 940 . 631 175 78 325 . 30 49 . 84 230 2481 118 77 . 560 368 33 245 2087 Core 10243 | . 444 333 1848 276 636 372 341 407 362 750 . 507 127 54 222 . 11 20 . 42 123 1379 80 43 . 322 181 17 142 1204 Absorbed by Shields 2695 | . . . . . . . . 20 . . . 28 168 74 277 . . . . 8 2 1186 113 73 . 183 293 32 161 77 Redirected to Core 8867 | . 349 236 1489 208 554 349 314 372 316 638 . 421 113 44 204 . 11 20 . 42 107 1329 80 43 . 322 174 17 121 994 Redirected to Shielding 204 | . . . . . . 10 194 . . . . . . . . . . . . . . . . . . . . . . . Regen/Repaired (Parts) 45 | . . . . . . . . . . . . . . . . . . . 45 . . . . . . . . . . . Core Remaining (%) 96 | 100 . 100 . . . 82 . . . . . 97 . . . . 100 . . . . . . . . 100 . . . . Volleys Fired 1545 | 14 170 37 271 44 48 45 94 128 47 86 . 101 60 10 43 . 5 9 2 15 31 120 8 7 . 23 68 5 8 46 Largest 4 | 2 2 2 3 3 3 2 2 4 3 2 . 2 4 2 2 . 1 2 2 3 3 3 2 2 . 3 3 2 2 3 Hottest 350 | 60 90 108 108 98 85 60 60 142 85 60 . 60 236 60 60 . 250 280 280 310 310 320 280 280 . 340 350 283 331 238 Shots Fired 2931 | 28 304 74 499 132 78 90 188 254 96 172 . 202 119 19 86 . 5 10 3 24 61 229 10 15 . 27 103 8 14 81 Gun 2709 | 28 298 69 427 131 76 90 188 246 96 172 . 202 115 18 86 . 5 10 3 24 61 198 10 15 . 25 81 8 14 13 Cannon 208 | . . 5 70 1 . . . 8 . . . . 1 . . . . . . . . 31 . . . 2 22 . . 68 Launcher 14 | . 6 . 2 . 2 . . . . . . . 3 1 . . . . . . . . . . . . . . . . Special . | . . . . . . . . . . . . . . . . . . . . . . . . . . . . . . . Kinetic 2290 | 14 164 . 424 132 76 90 188 254 96 172 . 202 113 18 86 . . 1 1 16 53 127 3 4 . 2 49 3 1 1 Thermal 278 | 14 . . . . . . . . . . . . 3 . . . 5 9 2 8 8 102 7 11 . 25 54 5 13 12 Explosive 14 | . 6 . 2 . 2 . . . . . . . 3 1 . . . . . . . . . . . . . . . . Electromagnetic 281 | . 134 74 73 . . . . . . . . . . . . . . . . . . . . . . . . . . . Entropic 68 | . . . . . . . . . . . . . . . . . . . . . . . . . . . . . . 68 Robot Hit Streak 80 | 10 16 12 34 14 21 16 13 13 7 10 . 15 24 11 28 . 9 12 26 16 11 80 30 24 . 26 31 20 23 42 Robot Miss Streak 10 | 2 4 4 3 2 2 2 4 5 3 2 . 2 3 6 2 . 5 3 1 3 2 10 2 3 . 3 4 2 3 1 Penetration Max 2 | . . . . . 2 1 2 2 2 1 . 2 2 1 1 . . . . 1 1 2 1 . . . 1 . . 1 Secondary Targets 30 | . 4 1 9 1 . 1 4 . 3 1 . 3 . . 2 . . . . . . 1 . . . . . . . . Max Gunslinging Chain 1 | . 1 1 1 1 . 1 1 . 1 1 . 1 . . 1 . . . . . . 1 . . . . . . . . Shots Hit Robots 1711 | 17 136 46 318 73 69 64 110 98 51 55 . 85 69 14 69 . 5 10 3 14 19 200 10 10 . 17 82 7 12 48 Core Hits 1296 | 9 55 20 109 31 33 34 79 72 37 37 . 49 59 14 32 . 8 25 6 18 12 326 21 17 . 31 111 13 12 26 Critical Kills 196 | . 1 . . . 5 18 31 28 16 23 . 17 12 5 9 . . . . 2 2 23 1 1 . . 1 . 1 . Critical Parts Destroyed 269 | . . . 2 . 8 22 34 26 20 21 . 36 16 2 19 . . 1 . 3 13 37 2 1 . . 5 1 . . Critical Strikes 513 | . 1 1 2 . 16 42 66 55 37 44 . 54 28 7 28 . . 1 . 5 15 64 3 2 . . 8 1 1 32 Destroy 475 | . 1 . 2 . 14 42 66 55 37 44 . 54 28 7 28 . . 1 . 5 15 63 3 2 . . 6 1 1 . Blast 3 | . . . . . . . . . . . . . . . . . . . . . . 1 . . . . 2 . . . Corrupt 1 | . . 1 . . . . . . . . . . . . . . . . . . . . . . . . . . . . Sever 2 | . . . . . 2 . . . . . . . . . . . . . . . . . . . . . . . . . Sunder 32 | . . . . . . . . . . . . . . . . . . . . . . . . . . . . . . 32 Melee Attacks 23 | . . . 6 . 16 . . . . . . . . . . 1 . . . . . . . . . . . . . . Impact . | . . . . . . . . . . . . . . . . . . . . . . . . . . . . . . . Slashing 22 | . . . 6 . 16 . . . . . . . . . . . . . . . . . . . . . . . . . Piercing 1 | . . . . . . . . . . . . . . . . 1 . . . . . . . . . . . . . . Sneak Attacks . | . . . . . . . . . . . . . . . . . . . . . . . . . . . . . . . Combat Hostiles . | . . . . . . . . . . . . . . . . . . . . . . . . . . . . . . . Follow-up Attacks 1 | . . . . . 1 . . . . . . . . . . . . . . . . . . . . . . . . . Damage Inflicted 65648 | 175 2039 949 6153 1365 1599 1354 3091 2668 1588 1618 . 2516 2399 386 1410 . 635 936 316 791 780 15124 808 810 . 1996 6769 819 951 5603 Guns 54724 | 175 1884 682 4853 1365 1116 1354 2996 2668 1511 1611 . 2516 1545 238 1410 . 635 936 316 791 780 14203 808 810 . 1996 5755 819 951 . Cannons 7828 | . . 78 802 . . . . . . . . . . . . . . . . . . 921 . . . . 424 . . 5603 Explosions 2695 | . 155 189 496 . 91 . 95 . 77 . . . 854 148 . . . . . . . . . . . . 590 . . . Melee 392 | . . . . . 392 . . . . . . . . . . . . . . . . . . . . . . . . . Ramming 9 | . . . 2 . . . . . . 7 . . . . . . . . . . . . . . . . . . . . Kinetic 28589 | 54 876 . 4805 1365 1116 1354 2996 2668 1511 1611 . 2516 1487 238 1410 . . 24 22 179 500 3144 63 57 . . 572 14 7 . Thermal 26238 | 121 129 189 83 . . . 95 . . . . . 58 . . . 635 912 294 612 280 11980 745 753 . 1996 5607 805 944 . Explosive 2018 | . . . 413 . 91 . . . . . . . 776 148 . . . . . . . . . . . . 590 . . . Electromagnetic 2799 | . 1034 760 850 . . . . . 77 . . . 78 . . . . . . . . . . . . . . . . . Impact . | . . . . . . . . . . . . . . . . . . . . . . . . . . . . . . . Slashing 392 | . . . . . 392 . . . . . . . . . . . . . . . . . . . . . . . . . Piercing . | . . . . . . . . . . . . . . . . . . . . . . . . . . . . . . . Entropic 5603 | . . . . . . . . . . . . . . . . . . . . . . . . . . . . . . 5603 Highest Corruption 4 | . . 1 4 4 4 . . 2 . . . 1 1 . . . . . . . . 4 4 4 4 4 2 2 2 2 Average Corruption 2 | . . 1 3 4 3 . . 1 . . . 1 1 . . . . . . . . 3 4 4 4 4 1 2 2 1 Corruption Purged 10 | . . . . . 4 . . 4 . . . 1 1 . . . . . . . . . . . . . . . . . Corruption Blocked 15 | . . . . . . . . . . . . . . . . . . . . . . . . . . . . . . 15 Effects 275 | . . 7 68 34 22 . . 1 . . . . 1 . . . . . . . . 42 8 30 1 21 17 5 14 4 Message Errors 57 | . . 2 10 10 5 . . . . . . . . . . . . . . . . 11 2 3 . 6 3 2 2 1 Matter Fused 67 | . . 2 14 6 7 . . . . . . . . . . . . . . . . 12 2 12 . 3 6 . 3 . Heat Flow Errors 28 | . . 1 5 3 1 . . . . . . . 1 . . . . . . . . 4 2 3 . 3 2 1 1 1 Energy Discharges 32 | . . 1 7 5 2 . . . . . . . . . . . . . . . . 5 . 5 . 3 1 . 2 1 Parts Rejected 5 | . . . 4 . 1 . . . . . . . . . . . . . . . . . . . . . . . . . Parts Fused 6 | . . . 2 . . . . . . . . . . . . . . . . . . 3 . . . . . . 1 . Data Loss (minor) 38 | . . . 12 6 4 . . 1 . . . . . . . . . . . . . 3 . 1 1 3 3 1 2 1 Data Loss (major) 15 | . . 1 3 . 2 . . . . . . . . . . . . . . . . 2 1 1 . 2 2 . 1 . Misfires 17 | . . . 4 3 . . . . . . . . . . . . . . . . . 1 . 5 . 1 . 1 2 . Alerts 3 | . . . 1 . . . . . . . . . . . . . . . . . . 1 1 . . . . . . . Weapon Failures 7 | . . . 6 1 . . . . . . . . . . . . . . . . . . . . . . . . . . Overload Shots . | . . . . . . . . . . . . . . . . . . . . . . . . . . . . . . . Overflow Damage 582 | . . 15 35 . . . 20 . . . . . . . . . . . . . . 24 . . . . 135 . . 353 Projectiles 420 | . . . 14 . . . . . . . . . . . . . . . . . . 24 . . . . 29 . . 353 Explosions 162 | . . 15 21 . . . 20 . . . . . . . . . . . . . . . . . . . 106 . . . Melee . | . . . . . . . . . . . . . . . . . . . . . . . . . . . . . . . Knockbacks 6 | . . . . . . . . . . . . . . . . . . . . . . 5 . . . . 1 . . . Impact . | . . . . . . . . . . . . . . . . . . . . . . . . . . . . . . . Kinetic 6 | . . . . . . . . . . . . . . . . . . . . . . 5 . . . . 1 . . . Secondary . | . . . . . . . . . . . . . . . . . . . . . . . . . . . . . . . Self-Inflicted Damage 255 | . 96 57 20 . . . . . . 3 . . 79 . . . . . . . . . . . . . . . . . Shots 9 | . 3 2 1 . . . . . . . . . 3 . . . . . . . . . . . . . . . . . Rammed 2 | . . . 1 . . . . . . 1 . . . . . . . . . . . . . . . . . . . . Targets Rammed 2 | . . . 1 . . . . . . 1 . . . . . . . . . . . . . . . . . . . . Kicked . | . . . . . . . . . . . . . . . . . . . . . . . . . . . . . . . Crushed . | . . . . . . . . . . . . . . . . . . . . . . . . . . . . . . . Highest Temperature 439 | 40 173 261 439 220 223 276 160 139 10 33 . 170 374 42 68 . 296 323 228 314 373 303 215 197 . 158 269 185 144 172 Average Temperature 63 | 21 50 69 67 52 21 65 54 39 3 9 . 58 79 19 30 . 140 110 106 103 89 79 115 87 . 58 21 44 42 30 Received Heat Transfer 4857 | . 255 183 873 84 . 678 279 126 198 432 . 192 33 28 128 . . 29 . 6 53 614 77 10 . 107 47 20 140 265 Effects 16 | . . . 3 . . . . . . . . . 3 . . . . 1 . 2 4 3 . . . . . . . . Shutdowns 4 | . . . 1 . . . . . . . . . 1 . . . . 1 . . 1 . . . . . . . . . Energy Bleed 1 | . . . . . . . . . . . . . 1 . . . . . . . . . . . . . . . . . Interference 9 | . . . . . . . . . . . . . 1 . . . . . . 2 3 3 . . . . . . . . Short Circuit 1 | . . . 1 . . . . . . . . . . . . . . . . . . . . . . . . . . . Damage (minor) 1 | . . . 1 . . . . . . . . . . . . . . . . . . . . . . . . . . . Siege Activations . | . . . . . . . . . . . . . . . . . . . . . . . . . . . . . . . Robots Corrupted 1 | . . 1 . . . . . . . . . . . . . . . . . . . . . . . . . . . . Combat Hostiles . | . . . . . . . . . . . . . . . . . . . . . . . . . . . . . . . Parts Fried 20 | . 8 4 6 . . . . . 1 . . . . . . . . . . . . 1 . . . . . . . . Impact Corruptions . | . . . . . . . . . . . . . . . . . . . . . . . . . . . . . . . Robots Melted 7 | . . . . . . . . . . . . . . . . . . . . . . 3 . . . 1 2 . 1 . Combat Hostiles 7 | . . . . . . . . . . . . . . . . . . . . . . 3 . . . 1 2 . 1 . Parts Melted 109 | . . . . . . . . . . . . 1 . . . . 5 5 . 4 . 49 2 9 . 7 22 3 2 . Heat Transferred 32358 | 275 100 350 150 . . . 50 . . . . . 74 . . . 900 1350 337 900 231 15343 1100 1075 . 2249 6013 825 1036 . Parts Sabotaged 3 | . . . . . . . . . . . . . . . . . . . . . . 1 . . . . . . . 2 Parts Stolen . | . . . . . . . . . . . . . . . . . . . . . . . . . . . . . . . Parts Stripped . | . . . . . . . . . . . . . . . . . . . . . . . . . . . . . . . Power Chain Reactions 9 | . 3 4 1 . . . . . 1 . . . . . . . . . . . . . . . . . . . . . Missiles Intercepted . | . . . . . . . . . . . . . . . . . . . . . . . . . . . . . . . Alert | -11 -10 -10 -9 -9 -9 -8 -8 -8 -8 -8 -8 -8 -7 -7 -7 -7 -6 -6 -6 -6 -6 -6 -6 -6 -6 -5 -5 -5 -5 -5 ------- Run | Jun Mat Min Mat Min Exi Min Mat Gar Mat Gar Mat Gar Fac Low Low Zio Pro Fac Was Fac Gar Fac Low Low Dat Pro Fac Upp Upp War Peak Influence 6070 | 40 555 382 1608 960 . 350 874 2335 1318 2019 984 1981 1500 . . . . 468 163 716 2276 6070 . . . . 1228 . . . Initial 1194 | . 26 200 . 625 . . 81 566 1138 617 984 547 1039 . . . . 52 163 . 396 1194 . . . . 144 . . . Average 1235 | 21 310 184 687 760 . 242 633 1525 913 1441 877 1338 1134 . . . . 180 108 228 1505 4247 . . . . 554 . . . Maximum Alert Level 5 | . 2 1 5 3 . 1 3 5 4 5 3 5 4 . . . . 2 . 3 5 5 . . . . 4 . . . Low Security (%) 16 | 100 33 59 15 . . 30 9 . . . . . . . . . . 70 100 63 . . . . . . 6 . . . Level 1 13 | . 31 40 18 . . 69 8 . 2 . . . . . . . . 19 . 1 7 . . . . . 32 . . . Level 2 15 | . 34 . 22 21 . . 33 8 25 3 . 6 . . . . . 10 . 33 5 . . . . . 36 . . . Level 3 18 | . . . 20 78 . . 47 22 33 23 100 28 61 . . . . . . . 8 . . . . . 18 . . . Level 4 12 | . . . 15 . . . . 19 38 24 . 27 38 . . . . . . . 28 11 . . . . 5 . . . Level 5 14 | . . . 7 . . . . 49 . 48 . 37 . . . . . . . . 49 22 . . . . . . . . High Security 8 | . . . . . . . . . . . . . . . . . . . . . . 65 . . . . . . . . Max Security . | . . . . . . . . . . . . . . . . . . . . . . . . . . . . . . . Sterilizations 2 | . . . 1 . . . . . . . . . . . . . . . . . . 1 . . . . . . . . Squads Dispatched 104 | . 5 1 17 1 . 1 8 . 4 . . . 7 . . . . 2 . 2 . 44 . . . . 12 . . . Investigation 24 | . 4 1 8 1 . . 4 . 1 . . . 2 . . . . . . . . 1 . . . . 2 . . . Extermination 5 | . . . . . . . . . . . . . 1 . . . . 1 . . . . . . . . 3 . . . Reinforcement 17 | . 1 . 4 . . 1 2 . 2 . . . 1 . . . . 1 . . . 3 . . . . 2 . . . Assault 49 | . . . 5 . . . 1 . . . . . 3 . . . . . . 1 . 38 . . . . 1 . . . Garrison 9 | . . . . . . . 1 . 1 . . . . . . . . . . 1 . 2 . . . . 4 . . . Intercept . | . . . . . . . . . . . . . . . . . . . . . . . . . . . . . . . Searches Triggered . | . . . . . . . . . . . . . . . . . . . . . . . . . . . . . . . Data Miner Redirects 1 | . . . . . . . . . . . . . . . . . . . . . . . . . . . 1 . . . Construction Impeded 5 | . . . 2 . . 1 . . 1 . . . . . . . . . . . . 1 . . . . . . . . Haulers Reinforced 2 | . . . . . . . . . . . . . . . . . . 1 . . . 1 . . . . . . . . Active Scanning Responses . | . . . . . . . . . . . . . . . . . . . . . . . . . . . . . . . Cargo Convoy Interrupts 1 | . . . . . . . . . . . . . . . . . . . . . . 1 . . . . . . . . Stealth | -11 -10 -10 -9 -9 -9 -8 -8 -8 -8 -8 -8 -8 -7 -7 -7 -7 -6 -6 -6 -6 -6 -6 -6 -6 -6 -5 -5 -5 -5 -5 --------- Run | Jun Mat Min Mat Min Exi Min Mat Gar Mat Gar Mat Gar Fac Low Low Zio Pro Fac Was Fac Gar Fac Low Low Dat Pro Fac Upp Upp War Distress Signals 13 | . 1 . 1 . . . 1 1 4 . . . . . . . . 1 . . . 2 . . . . 1 . . 1 Communications Jammed 8 | . . . . . . . . . . . . . 5 . . . . 2 . . . . . . . . 1 . . . Distress Signals 6 | . . . . . . . . . . . . . 5 . . . . 1 . . . . . . . . . . . . Times Spotted 794 | . 32 3 87 16 22 15 47 39 22 29 . 28 22 7 14 . 4 12 . 9 25 194 5 6 . 26 45 4 6 75 Peak Tracking Total 20 | . 3 2 9 4 10 7 6 5 5 4 . 4 6 4 4 . 1 3 . 3 6 17 3 4 . 13 4 2 4 20 Tactical Retreats 52 | . 2 . 4 . 4 1 2 7 1 10 . 3 3 . . . . . . 1 1 8 . . . . 2 . . 3 Traps | -11 -10 -10 -9 -9 -9 -8 -8 -8 -8 -8 -8 -8 -7 -7 -7 -7 -6 -6 -6 -6 -6 -6 -6 -6 -6 -5 -5 -5 -5 -5 ------- Run | Jun Mat Min Mat Min Exi Min Mat Gar Mat Gar Mat Gar Fac Low Low Zio Pro Fac Was Fac Gar Fac Low Low Dat Pro Fac Upp Upp War Traps Triggered 22 | . . . 2 . . . . 3 . 7 . 3 1 . . . . 1 . 2 1 2 . . . . . . . . Indirectly 1 | . . . . . . . . . . . . . 1 . . . . . . . . . . . . . . . . . Trap Hack Attempts . | . . . . . . . . . . . . . . . . . . . . . . . . . . . . . . . Triggered . | . . . . . . . . . . . . . . . . . . . . . . . . . . . . . . . Disarmed . | . . . . . . . . . . . . . . . . . . . . . . . . . . . . . . . Reprogrammed 16 | . 8 . . . . . 8 . . . . . . . . . . . . . . . . . . . . . . . Reused 1 | . . . . . . . 1 . . . . . . . . . . . . . . . . . . . . . . . Traps Extracted . | . . . . . . . . . . . . . . . . . . . . . . . . . . . . . . . Installed . | . . . . . . . . . . . . . . . . . . . . . . . . . . . . . . . Triggered 20 | . . . 1 1 . . 1 . . . . . . . . . . . . . . . 1 . . . . 1 . 15 Exploded 3 | . . . . . 3 . . . . . . . . . . . . . . . . . . . . . . . . . Machines | -11 -10 -10 -9 -9 -9 -8 -8 -8 -8 -8 -8 -8 -7 -7 -7 -7 -6 -6 -6 -6 -6 -6 -6 -6 -6 -5 -5 -5 -5 -5 ---------- Run | Jun Mat Min Mat Min Exi Min Mat Gar Mat Gar Mat Gar Fac Low Low Zio Pro Fac Was Fac Gar Fac Low Low Dat Pro Fac Upp Upp War Machines Disabled 196 | . 22 4 45 2 13 . 10 17 6 10 . 12 12 . . . . 1 . 12 5 8 . . . 2 15 . . . Max in Single Turn 5 | . 3 1 4 1 2 . 2 2 2 1 . 2 2 . . . . . . 1 1 1 . . . 1 5 . . . Garrison Access 3 | . . . . . . . . . . . . . . . . . . . . . . 2 . . . . 1 . . . Garrison Relay 21 | . . . . . . . . 6 . 5 . 6 . . . . . . . . 4 . . . . . . . . . Machines Repaired 2 | . 1 . 1 . . . . . . . . . . . . . . . . . . . . . . . . . . . Machines Sabotaged . | . . . . . . . . . . . . . . . . . . . . . . . . . . . . . . . Overloaded Fab Kills . | . . . . . . . . . . . . . . . . . . . . . . . . . . . . . . . Hacking | -11 -10 -10 -9 -9 -9 -8 -8 -8 -8 -8 -8 -8 -7 -7 -7 -7 -6 -6 -6 -6 -6 -6 -6 -6 -6 -5 -5 -5 -5 -5 --------- Run | Jun Mat Min Mat Min Exi Min Mat Gar Mat Gar Mat Gar Fac Low Low Zio Pro Fac Was Fac Gar Fac Low Low Dat Pro Fac Upp Upp War Machines Accessed 88 | . 8 3 13 1 . . 7 3 6 4 2 4 10 . 1 1 . 1 . 3 1 3 . 1 2 1 4 . . 9 Terminals 46 | . 6 1 10 . . . 6 3 4 4 1 4 5 . . . . . . . 1 . . . . 1 . . . . Fabricators 6 | . . . . . . . . . . . . . 3 . . . . . . 2 . . . . . . 1 . . . Repair Stations . | . . . . . . . . . . . . . . . . . . . . . . . . . . . . . . . Recycling Units 9 | . 2 . 2 . . . . . 1 . . . 2 . . . . . . . . . . . . . 2 . . . Scanalyzers 2 | . . . 1 . . . . . . . . . . . . . . 1 . . . . . . . . . . . . Garrison Access 8 | . . . . . . . 1 . 1 . 1 . . . . . . . . 1 . 3 . . . . 1 . . . Total Hacks 350 | . 40 6 79 1 . . 35 9 36 12 9 13 32 . 1 6 . 2 . 7 2 7 . 1 20 7 10 . . 15 Successful 227 | . 25 3 61 1 . . 16 4 23 7 5 5 14 . 1 6 . 2 . 2 1 2 . 1 20 7 6 . . 15 Failed 121 | . 14 3 18 . . . 19 5 12 5 4 8 18 . . . . . . 5 1 5 . . . . 4 . . . Catastrophic 15 | . 1 1 1 . . . 3 1 . 1 . . 3 . . . . . . 2 . 2 . . . . . . . . Database Lockouts 2 | . 1 . . . . . . . 1 . . . . . . . . . . . . . . . . . . . . . Manual 187 | . 20 2 40 . 1 . 20 4 12 7 7 1 16 . . . . 13 . 17 2 6 . . . . 19 . . . Terminals 226 | . 32 4 62 . . . 34 9 31 12 8 13 12 . . . . . . . 2 . . . . 7 . . . . Fabricators 19 | . . . . . . . . . . . . . 12 . . . . . . 6 . . . . . . 1 . . . Repair Stations . | . . . . . . . . . . . . . . . . . . . . . . . . . . . . . . . Recycling Units 37 | . 8 . 12 . . . . . 4 . . . 8 . . . . . . . . . . . . . 5 . . . Scanalyzers 7 | . . . 5 . . . . . . . . . . . . . . 2 . . . . . . . . . . . . Garrison Access 15 | . . . . . . . 1 . 1 . 1 . . . . . . . . 1 . 7 . . . . 4 . . . Terminal Hacks 152 | . 16 3 34 1 . . 13 3 17 4 3 4 3 . 1 6 . . . . 1 . . 1 20 7 . . . 15 Record 28 | . . . 5 . . . . . 2 . . . . . . . . . . . . . . . . 7 . . . 14 Part Schematic 17 | . . . . . . . . . . . . . . . . 6 . . . . . . . . 11 . . . . . Robot Schematic 6 | . . . . . . . . . . . . . . . . . . . . . . . . . 6 . . . . . Robot Analysis 10 | . 3 . 6 . . . 1 . . . . . . . . . . . . . . . . . . . . . . . Prototype ID Bank 16 | . 5 . 4 . . . 1 . 2 . . . 1 . . . . . . . . . . . 3 . . . . . Open Door 10 | . . 2 . 1 . . . 1 . 1 . 1 . . 1 . . . . . 1 . . 1 . . . . . 1 Level Access Points 1 | . 1 . . . . . . . . . . . . . . . . . . . . . . . . . . . . . Branch Access Points 3 | . . . 2 . . . . . . . . . 1 . . . . . . . . . . . . . . . . . Emergency Access Points 7 | . . . 1 . . . 2 1 1 1 . 1 . . . . . . . . . . . . . . . . . . Machine Index 1 | . . . . . . . 1 . . . . . . . . . . . . . . . . . . . . . . . Terminal Index 1 | . . . 1 . . . . . . . . . . . . . . . . . . . . . . . . . . . Repair Station Index 1 | . . . 1 . . . . . . . . . . . . . . . . . . . . . . . . . . . Garrison Index 2 | . . . . . . . . . 1 . 1 . . . . . . . . . . . . . . . . . . . Alert Level 1 | . . . . . . . . . 1 . . . . . . . . . . . . . . . . . . . . . Unreport Threat 15 | . 1 . 4 . . . 3 . 6 . 1 . . . . . . . . . . . . . . . . . . . Reprogram Traps 6 | . 2 . 1 . . . 2 . 1 . . . . . . . . . . . . . . . . . . . . . Dispatch Records 2 | . . 1 1 . . . . . . . . . . . . . . . . . . . . . . . . . . . Maintenance Status 1 | . . . 1 . . . . . . . . . . . . . . . . . . . . . . . . . . . Investigation Status 1 | . . . 1 . . . . . . . . . . . . . . . . . . . . . . . . . . . Recall Investigation 1 | . . . 1 . . . . . . . . . . . . . . . . . . . . . . . . . . . Hauler Manifests 3 | . 1 . 1 . . . . . 1 . . . . . . . . . . . . . . . . . . . . . Registered Components 3 | . 1 . 1 . . . 1 . . . . . . . . . . . . . . . . . . . . . . . Registered Prototypes 1 | . . . . . . . . . 1 . . . . . . . . . . . . . . . . . . . . . Zone Layout 10 | . 2 . 3 . . . 2 . 1 . 1 . 1 . . . . . . . . . . . . . . . . . Garrison Registry 3 | . . . . . . . . 1 . 1 . 1 . . . . . . . . . . . . . . . . . . Patrol Navigation 2 | . . . . . . . . . . 1 . 1 . . . . . . . . . . . . . . . . . . Fabricator Hacks 4 | . . . . . . . . . . . . . 4 . . . . . . . . . . . . . . . . . Network Status 3 | . . . . . . . . . . . . . 3 . . . . . . . . . . . . . . . . . Build 1 | . . . . . . . . . . . . . 1 . . . . . . . . . . . . . . . . . Repair Station Hacks . | . . . . . . . . . . . . . . . . . . . . . . . . . . . . . . . Recycling Unit Hacks 8 | . 1 . 3 . . . . . . . . . 2 . . . . . . . . . . . . . 2 . . . Report Inventory 7 | . 1 . 2 . . . . . . . . . 2 . . . . . . . . . . . . . 2 . . . Retrieve Matter 1 | . . . 1 . . . . . . . . . . . . . . . . . . . . . . . . . . . Scanalyzer 7 | . . . 5 . . . . . . . . . . . . . . 2 . . . . . . . . . . . . Insert Component 4 | . . . 3 . . . . . . . . . . . . . . 1 . . . . . . . . . . . . Analyze 3 | . . . 2 . . . . . . . . . . . . . . 1 . . . . . . . . . . . . Garrison Access Hacks 6 | . . . . . . . 1 . 1 . 1 . . . . . . . . 1 . 2 . . . . . . . . Unlock Access 4 | . . . . . . . 1 . 1 . 1 . . . . . . . . 1 . . . . . . . . . . Seal Access 2 | . . . . . . . . . . . . . . . . . . . . . . 2 . . . . . . . . Unauthorized Hacks 50 | . 8 . 19 . . . 2 1 5 3 1 1 5 . . . . . . 1 . . . . . . 4 . . . Terminals 25 | . 3 . 12 . . . 2 1 2 3 1 1 . . . . . . . . . . . . . . . . . . Botnet 13 | . 2 . 5 . . . 2 . 2 1 1 . . . . . . . . . . . . . . . . . . . Detonate 1 | . . . 1 . . . . . . . . . . . . . . . . . . . . . . . . . . . Disrupt 1 | . . . 1 . . . . . . . . . . . . . . . . . . . . . . . . . . . Sabotage 2 | . 1 . 1 . . . . . . . . . . . . . . . . . . . . . . . . . . . Search 4 | . . . 4 . . . . . . . . . . . . . . . . . . . . . . . . . . . Override 4 | . . . . . . . . 1 . 2 . 1 . . . . . . . . . . . . . . . . . . Fabricators 5 | . . . . . . . . . . . . . 3 . . . . . . 1 . . . . . . 1 . . . Report 1 | . . . . . . . . . . . . . 1 . . . . . . . . . . . . . . . . . Fabnet 4 | . . . . . . . . . . . . . 2 . . . . . . 1 . . . . . . 1 . . . Repair Stations . | . . . . . . . . . . . . . . . . . . . . . . . . . . . . . . . Recycling Units 20 | . 5 . 7 . . . . . 3 . . . 2 . . . . . . . . . . . . . 3 . . . Monitor 2 | . 1 . 1 . . . . . . . . . . . . . . . . . . . . . . . . . . . Reject 6 | . 1 . 2 . . . . . 1 . . . 1 . . . . . . . . . . . . . 1 . . . Mask 6 | . 1 . 2 . . . . . 1 . . . 1 . . . . . . . . . . . . . 1 . . . Tunnel 6 | . 2 . 2 . . . . . 1 . . . . . . . . . . . . . . . . . 1 . . . Scanalyzers . | . . . . . . . . . . . . . . . . . . . . . . . . . . . . . . . Garrison Access . | . . . . . . . . . . . . . . . . . . . . . . . . . . . . . . . Data Cores Recovered 3 | . . . . . . . 1 . . . . . 1 . . . . . . . . . . . . . 1 . . . Used . | . . . . . . . . . . . . . . . . . . . . . . . . . . . . . . . Hacking Detections 53 | . 7 1 11 . . . 7 2 4 3 1 2 7 . . . . 1 . 3 . 2 . . . . 2 . . . Full Trace Events 18 | . 3 1 3 . . . 5 1 . . . 1 2 . . . . . . . . 1 . . . . 1 . . . Feedback Events 2 | . . 1 . . . . . . . . . . 1 . . . . . . . . . . . . . . . . . Corruption 2 | . . 1 . . . . . . . . . . 1 . . . . . . . . . . . . . . . . . Feedback Blocked . | . . . . . . . . . . . . . . . . . . . . . . . . . . . . . . . Robot Schematics Acquired 10 | . . . . . . . . . . . . . . . . 4 . . . . . . . . 6 . . . . . Robots Built . | . . . . . . . . . . . . . . . . . . . . . . . . . . . . . . . Authchips . | . . . . . . . . . . . . . . . . . . . . . . . . . . . . . . . Time . | . . . . . . . . . . . . . . . . . . . . . . . . . . . . . . . Total Robot Build Rating . | . . . . . . . . . . . . . . . . . . . . . . . . . . . . . . . Part Schematics Acquired 43 | . . . 2 . . . . . . . . . . . . 21 . 1 . 8 . . . . 11 . . . . . Parts Built 2 | . . . . . . . . . . . . . 2 . . . . . . . . . . . . . . . . . Authchips . | . . . . . . . . . . . . . . . . . . . . . . . . . . . . . . . Time 39 | . . . . . . . . . . . . . 39 . . . . . . . . . . . . . . . . . Total Part Build Rating 14 | . . . . . . . . . . . . . 14 . . . . . . . . . . . . . . . . . Parts Repaired . | . . . . . . . . . . . . . . . . . . . . . . . . . . . . . . . Time . | . . . . . . . . . . . . . . . . . . . . . . . . . . . . . . . Parts Recycled . | . . . . . . . . . . . . . . . . . . . . . . . . . . . . . . . Recycled Matter . | . . . . . . . . . . . . . . . . . . . . . . . . . . . . . . . Retrieved Matter 240 | . . . 240 . . . . . . . . . . . . . . . . . . . . . . . . . . . Retrieved Components . | . . . . . . . . . . . . . . . . . . . . . . . . . . . . . . . Parts Scanalyzed 3 | . . . 2 . . . . . . . . . . . . . . 1 . . . . . . . . . . . . Part Schematics Acquired 3 | . . . 2 . . . . . . . . . . . . . . 1 . . . . . . . . . . . . Parts Damaged . | . . . . . . . . . . . . . . . . . . . . . . . . . . . . . . . Bothacking | -11 -10 -10 -9 -9 -9 -8 -8 -8 -8 -8 -8 -8 -7 -7 -7 -7 -6 -6 -6 -6 -6 -6 -6 -6 -6 -5 -5 -5 -5 -5 ------------ Run | Jun Mat Min Mat Min Exi Min Mat Gar Mat Gar Mat Gar Fac Low Low Zio Pro Fac Was Fac Gar Fac Low Low Dat Pro Fac Upp Upp War Used RIF Installer . | . . . . . . . . . . . . . . . . . . . . . . . . . . . . . . . Robots Hacked 29 | . . . . . . . . . . . . . . . . . . . . 1 3 14 . 1 . 1 4 . . 5 Non-combat . | . . . . . . . . . . . . . . . . . . . . . . . . . . . . . . . Combat 29 | . . . . . . . . . . . . . . . . . . . . 1 3 14 . 1 . 1 4 . . 5 Robot Hacks Applied . | . . . . . . . . . . . . . . . . . . . . . . . . . . . . . . . Relay Couplers Released 38 | . . . . . . . . 12 . 9 . 10 . . . . . . . . 7 . . . . . . . . . Machine Destruction 36 | . . . . . . . . 10 . 9 . 10 . . . . . . . . 7 . . . . . . . . . Programmers 2 | . . . . . . . . 2 . . . . . . . . . . . . . . . . . . . . . . Fabnet Peak Effective % 6 | . . . . . . . . . . . . . . . . . 6 6 6 6 6 6 6 6 6 5 5 5 5 5 Autooverrided 29 | . . . . . . . . . . . . . . . . . . . . 1 3 14 . 1 . 1 4 . . 5 Robots Rewired 9 | . . . . . . . . 5 . . . 2 . . . . . . . . 2 . . . . . . . . . Allies Hacked 1 | . . . . . . . . . . . . . . . . . . . . . . 1 . . . . . . . . Hacks Repelled . | . . . . . . . . . . . . . . . . . . . . . . . . . . . . . . . Allies | -11 -10 -10 -9 -9 -9 -8 -8 -8 -8 -8 -8 -8 -7 -7 -7 -7 -6 -6 -6 -6 -6 -6 -6 -6 -6 -5 -5 -5 -5 -5 -------- Run | Jun Mat Min Mat Min Exi Min Mat Gar Mat Gar Mat Gar Fac Low Low Zio Pro Fac Was Fac Gar Fac Low Low Dat Pro Fac Upp Upp War Total Allies 85 | . . 4 . 2 . . . 7 . 1 . 2 . . . 8 . 3 22 1 5 15 . 1 . 2 7 . . 5 Largest Group 29 | . . 3 3 2 . . . 5 5 1 1 2 . . . 8 8 10 29 29 15 16 . 1 . 2 3 . . 2 Highest-Rated Group 1122 | . . 40 40 41 . . . 80 80 31 31 70 . . . 284 284 327 1122 1122 591 603 . 12 . 108 110 . . 41 Highest-Rated Ally 96 | . . 31 16 31 . . . 31 16 31 31 39 . . . 41 41 41 50 50 50 50 . 12 . 96 54 . . 29 Zionite Dispatches 2 | . . . . . . . . . . . . . . . . . . 1 . . . . . . . . 1 . . . Fire 2 | . . . . . . . . . . . . . . . . . . 1 . . . . . . . . 1 . . . Total Orders 2 | . . . . . . . . . . . . . . . . . . . . . . 1 . . . . . 1 . . EXPLORE 2 | . . . . . . . . . . . . . . . . . . . . . . 1 . . . . . 1 . . Ally Attacks 520 | . . . 15 . . . . 8 22 1 . 26 . . . . 13 27 . 56 112 196 . 6 . 21 15 . . 2 Total Damage 21840 | . . . 193 . . . . 196 258 22 . 431 . . . . 655 454 . 2026 4883 11640 . 89 . 725 253 . . 15 Kills 144 | . . . 1 . . . . 1 5 1 . 3 . . . . 3 6 . 14 31 69 . 1 . 8 1 . . . Allies Corrupted 7 | . . . 1 . . . . . . . . . . . . . . . . 1 . 4 . . . . 1 . . . Allies Melted . | . . . . . . . . . . . . . . . . . . . . . . . . . . . . . . . Intel | -11 -10 -10 -9 -9 -9 -8 -8 -8 -8 -8 -8 -8 -7 -7 -7 -7 -6 -6 -6 -6 -6 -6 -6 -6 -6 -5 -5 -5 -5 -5 ------- Run | Jun Mat Min Mat Min Exi Min Mat Gar Mat Gar Mat Gar Fac Low Low Zio Pro Fac Was Fac Gar Fac Low Low Dat Pro Fac Upp Upp War Robot Analysis Total 9 | . 2 . 6 . . . 1 . . . . . . . . . . . . . . . . . . . . . . . Derelict Logs Recovered 12 | . . 2 . 2 . . . . . . . . . 2 1 1 . . . . . . 1 2 . 1 . . . . Drone Launches 4 | . . . . . . . . . . . . . . . . . . . . . . 2 . . . . . 2 . . Drone Recoveries . | . . . . . . . . . . . . . . . . . . . . . . . . . . . . . . . Decoded 0b10 Intel 86 | . . . . . . . . . . . . . . . . . . 4 . 11 19 47 . . . . 5 . . . Traps 75 | . . . . . . . . . . . . . . . . . . 4 . 7 17 43 . . . . 4 . . . Emergency Access 8 | . . . . . . . . . . . . . . . . . . . . 3 2 3 . . . . . . . . Garrisons 1 | . . . . . . . . . . . . . . . . . . . . . . 1 . . . . . . . . Exits 2 | . . . . . . . . . . . . . . . . . . . . 1 . . . . . . 1 . . . Zionite Intel Received 9 | . . . . . . . . . . . . . . . . . . 3 . 2 . 1 . . . . 3 . . . Main Access 1 | . . . . . . . . . . . . . . . . . . . . . . . . . . . 1 . . . Branch Access 2 | . . . . . . . . . . . . . . . . . . 1 . 1 . . . . . . . . . . Emergency Access 3 | . . . . . . . . . . . . . . . . . . 1 . . . 1 . . . . 1 . . . Prototype Schematics 1 | . . . . . . . . . . . . . . . . . . . . 1 . . . . . . . . . . Trap Installations 1 | . . . . . . . . . . . . . . . . . . . . . . . . . . . 1 . . . Active Terminals 1 | . . . . . . . . . . . . . . . . . . 1 . . . . . . . . . . . . Exploration | -11 -10 -10 -9 -9 -9 -8 -8 -8 -8 -8 -8 -8 -7 -7 -7 -7 -6 -6 -6 -6 -6 -6 -6 -6 -6 -5 -5 -5 -5 -5 ------------- Run | Jun Mat Min Mat Min Exi Min Mat Gar Mat Gar Mat Gar Fac Low Low Zio Pro Fac Was Fac Gar Fac Low Low Dat Pro Fac Upp Upp War Turns Passed 36824 | 126 2599 1267 3804 1359 1214 533 694 1474 313 1415 32 1355 1248 503 2045 1626 439 453 601 827 1348 3357 500 1300 122 1124 2254 483 924 1485 Spaces Moved 18639 | 19 1203 618 1550 814 867 151 348 680 134 766 23 761 651 307 1301 1076 243 255 302 411 597 1416 279 783 75 581 1018 240 496 674 Core 7 | . 3 . 3 1 . . . . . . . . . . . . . . . . . . . . . . . . . . Treads 3194 | . 583 618 1547 446 . . . . . . . . . . . . . . . . . . . . . . . . . . Legs 18 | 18 . . . . . . . . . . . . . . . . . . . . . . . . . . . . . . Wheels 15420 | 1 617 . . 367 867 151 348 680 134 766 23 761 651 307 1301 1076 243 255 302 411 597 1416 279 783 75 581 1018 240 496 674 Hover . | . . . . . . . . . . . . . . . . . . . . . . . . . . . . . . . Flight . | . . . . . . . . . . . . . . . . . . . . . . . . . . . . . . . Fastest Speed 90 | 100 90 160 160 100 100 115 115 115 130 130 130 130 130 145 145 130 145 145 145 160 175 160 160 160 160 160 160 160 175 175 Average Speed 149 | 118 129 160 162 140 106 119 115 121 130 130 130 130 140 145 145 143 159 145 158 170 175 165 160 160 160 161 173 174 175 179 Slowest Speed 500 | 120 250 160 300 500 130 130 130 130 130 130 130 130 145 145 145 160 160 145 175 175 175 175 160 160 160 175 175 175 175 190 Overloaded Moves . | . . . . . . . . . . . . . . . . . . . . . . . . . . . . . . . Propulsion Burnouts . | . . . . . . . . . . . . . . . . . . . . . . . . . . . . . . . Robots Hopped . | . . . . . . . . . . . . . . . . . . . . . . . . . . . . . . . Cave-ins Triggered . | . . . . . . . . . . . . . . . . . . . . . . . . . . . . . . . Exploration Rate (%) 61 | 3 97 97 97 97 86 22 41 81 22 90 4 82 24 56 98 88 46 11 88 14 82 53 45 80 68 87 38 46 74 85 Regions Visited 30 Branch Regions 15 Pre-discovered Areas 15 | . 2 1 2 1 . . . . 1 . . . . 3 . 2 . . . . . . . 2 . . 1 . . . Known Exits Taken 10 | . . 1 1 . . . 1 . 1 . 1 . 1 . . . . . . 1 . 1 . . . 1 1 . . . Unknown Exits Taken 14 | 1 1 . . 1 1 1 . . . . . . . 1 1 1 1 . . . . . 1 1 1 . . 1 1 . Scrap Searched 25 | . . 2 . 1 . . . . . . . . . 2 2 2 3 . . . . . 4 2 . 4 . 1 2 . Spaces Dug 137 | . . . 1 . . . 1 5 60 9 . 4 39 . . . . . . . 3 1 . . . 2 5 . . 7 Terrain Destroyed 1197 | . 125 39 297 11 22 56 103 44 97 57 . 42 74 18 22 . . . . 35 14 12 . 2 . 2 55 . 2 68 Melee 1 | . . . 1 . . . . . . . . . . . . . . . . . . . . . . . . . . . Projectile 418 | . . . . 1 2 55 65 34 43 54 . 36 5 . 18 . . . . . 12 11 . 2 . 2 8 . 2 68 AOE 739 | . 125 39 296 10 20 . 35 . 53 . . . 62 17 . . . . . 35 . . . . . . 47 . . . Terrain Rammed . | . . . . . . . . . . . . . . . . . . . . . . . . . . . . . . . Walls Destroyed . | . . . . . . . . . . . . . . . . . . . . . . . . . . . . . . . Machines Disabled . | . . . . . . . . . . . . . . . . . . . . . . . . . . . . . . . Actions | -11 -10 -10 -9 -9 -9 -8 -8 -8 -8 -8 -8 -8 -7 -7 -7 -7 -6 -6 -6 -6 -6 -6 -6 -6 -6 -5 -5 -5 -5 -5 --------- Run | Jun Mat Min Mat Min Exi Min Mat Gar Mat Gar Mat Gar Fac Low Low Zio Pro Fac Was Fac Gar Fac Low Low Dat Pro Fac Upp Upp War Total 24911 | 95 1948 824 2415 980 1101 426 524 1173 214 1077 25 1001 906 352 1406 1163 279 320 424 501 827 2037 309 806 77 701 1316 286 525 873 Wait 3220 | 58 505 132 429 76 67 176 21 222 11 130 2 80 175 28 46 38 21 47 69 58 158 353 17 16 3 30 171 31 7 43 Move 18611 | 18 1202 617 1549 813 866 150 348 679 134 765 23 758 650 306 1300 1075 242 255 301 410 596 1415 278 782 74 580 1017 239 495 674 Hop . | . . . . . . . . . . . . . . . . . . . . . . . . . . . . . . . Pick Up 96 | . 4 5 11 5 24 . 4 . . . . . . . . 15 1 2 5 . 1 6 . 1 . 5 2 1 . 4 Fast Attach 138 | 4 16 2 16 3 12 13 2 12 1 1 . 4 6 1 . 2 . 2 9 . . 4 1 . . 4 4 2 1 16 Attach 61 | . . 2 2 2 11 . 4 3 . . . . . . . 10 3 1 6 1 . 8 . . . 2 2 . . 4 Detach 40 | . 1 . 2 1 9 3 1 3 . . . . 1 . . 5 . . 5 . . 2 1 . . 1 . . . 5 Swap 39 | . 6 . 8 2 4 1 . 1 . . . . . . . . . 1 4 1 4 2 . . . 1 2 . . 2 Drop 192 | 1 16 6 16 8 33 10 4 10 1 1 . 4 4 1 . 17 1 3 16 . . 6 . . . 8 5 2 1 18 Fire 1545 | 14 170 37 271 44 48 45 94 128 47 86 . 101 60 10 43 . 5 9 2 15 31 120 8 7 . 23 68 5 8 46 Melee 22 | . . . 6 . 15 . . . . . . . . . . 1 . . . . . . . . . . . . . . Ram 1 | . . . . . . . . . . 1 . . . . . . . . . . . . . . . . . . . . Kick . | . . . . . . . . . . . . . . . . . . . . . . . . . . . . . . . Crush 1 | . . . 1 . . . . . . . . . . . . . . . . . . . . . . . . . . . Escape Stasis 119 | . . . . . . . . 23 . 48 . 16 . . . . . . . 16 8 8 . . . . . . . . Rewire 48 | . . . . . . . . 26 . . . 5 . . . . . . 1 . 16 . . . . . . . . . Trap . | . . . . . . . . . . . . . . . . . . . . . . . . . . . . . . . Miscellaneous 778 | . 28 23 104 26 12 28 46 66 20 45 . 33 10 6 17 . 6 . 6 . 13 113 4 . . 47 45 6 13 61 Route ------- -11/Junkyard -10/Materials (discovered 4 exits: *Mat x3 / *Min) -10/Mines (discovered 2 exits: *Mat x2) -9/Materials (discovered 4 exits: *Mat x3 / *Min) -9/Mines (discovered 3 exits: *Mat x2 / *Exi) -9/Exiles -8/Mines -8/Materials (discovered 4 exits: *Fac x2 / Sto / Gar) -8/Garrison (discovered 3 exits: *Mat x3) -8/Materials (discovered 3 exits: *Fac / *Sto / Gar) -8/Garrison (discovered 3 exits: *Mat x3) -8/Materials -8/Garrison (discovered 3 exits: *Fac x3) -7/Factory (discovered 2 exits: *Low x2) -7/Lower Caves -7/Lower Caves (discovered 2 exits: *Fac / *Zio) -7/Zion -6/Proximity Caves -6/Factory (discovered 2 exits: Low x2) -6/Waste -6/Factory (discovered 4 exits: *Fac / Low x2 / Gar) -6/Garrison (discovered 3 exits: *Fac x3) -6/Factory (discovered 4 exits: *Fac x3 / *Low) -6/Lower Caves -6/Lower Caves -6/Data Miner -5/Proximity Caves -5/Factory (discovered 6 exits: *Fac x4 / *Upp x2) -5/Upper Caves -5/Upper Caves (discovered 2 exits: *Fac / *War) -5/Warlord (discovered 1 exit: [*Pro]) History --------- Turn | Location | Event 6 | -11/Junkyard | Upgraded with Utility slot (x3) 6 | -11/Junkyard | Upgraded with Weapon slot (x1) 58 | -11/Junkyard | Discovered new exit (range 2) 127 | -11/Junkyard | Entered Materials 313 | -10/Materials | Build established: Mutant 638 | -10/Materials | Discovered new exit (range 16) 892 | -10/Materials | Build established: Scavenger-Skirmisher 1007 | -10/Materials | Reached level 2 1192 | -10/Materials | Central database locked down 1207 | -10/Materials | Discovered new exit (range 14) 1226 | -10/Materials | Identified exit to Materials 1322 | -10/Materials | Build established: Hacker-Skirmisher 1401 | -10/Materials | Reached level 3 1418 | -10/Materials | Upgraded with Utility slot (x1) 2179 | -10/Materials | Reached level 4 2188 | -10/Materials | Upgraded with Propulsion slot (x1) 2726 | -10/Materials | Entered Mines 2755 | -10/Mines | Build established: Hacker-Mutant 2762 | -10/Mines | Met a Derelict bent on vengeance 2924 | -10/Mines | Discovered exit to Materials (range 9) 3255 | -10/Mines | Received a Mining Laser from a helpful Derelict 3457 | -10/Mines | Met a Derelict who couldn't figure out how to use a Trap Extractor 3531 | -10/Mines | Assisted by bots powering up and referring to "LRC-V3" 3540 | -10/Mines | Learned Materials emergency access door positions 3829 | -10/Mines | Reached level 5 3875 | -10/Mines | Upgraded with Utility slot (x1) 3876 | -10/Mines | Found the Drone Emporium 3887 | -10/Mines | Found Prototype Device 3963 | -10/Mines | Discovered exit to Materials (range 16) 3993 | -10/Mines | Entered Materials 3993 | -9/Materials | Accompanied by 3 allies 3995 | -9/Materials | Reached level 6 4372 | -9/Materials | Discovered new exit (range 9) 4586 | -9/Materials | Reached level 7 4768 | -9/Materials | Identified Sensor Drone Bay 4987 | -9/Materials | Identified exit to Mines 5231 | -9/Materials | Reached level 8 5233 | -9/Materials | Upgraded with Utility slot (x1) 5334 | -9/Materials | Discovered new exit (range 8) 5539 | -9/Materials | Core integrity fell below 50% 5573 | -9/Materials | Core integrity fell below 20% 5707 | -9/Materials | Reached level 9 5983 | -9/Materials | Discovered new exit (range 3) 6393 | -9/Materials | First assault squad dispatched 6479 | -9/Materials | Reached level 10 6514 | -9/Materials | Destroyed 8 combat bots 6568 | -9/Materials | Upgraded with Power slot (x1) 6568 | -9/Materials | Upgraded with Weapon slot (x1) 7352 | -9/Materials | Sterilization system engaged 7352 | -9/Materials | Non-combat units ordered to evacuate 7360 | -9/Materials | Destroyed 9 combat bots 7452 | -9/Materials | Combat units ordered to evacuate 7652 | -9/Materials | Ambient heat levels rising (+10) 7797 | -9/Materials | Entered Mines 7803 | -9/Mines | Reached level 11 7920 | -9/Mines | Met a Derelict shopkeep closing up shop 7985 | -9/Mines | Excavation squad dispatched 7985 | -9/Mines | A large section of the Mines collapsed 8059 | -9/Mines | Discovered new exit (range 4) 8097 | -9/Mines | Build established: Hacker-Gunner 8200 | -9/Mines | Received a Rocket Launcher from a helpful Derelict 8314 | -9/Mines | Learned location of 1 exit from Materials 8439 | -9/Mines | Discovered new exit (range 9) 8449 | -9/Mines | Learned location of Storage (-8) 8702 | -9/Mines | Learned Materials emergency access door positions 9152 | -9/Mines | Deemed a non-threat by the Exiles lab entrance 9152 | -9/Mines | Discovered new exit (range 5) 9156 | -9/Mines | Entered Exiles 9206 | -9/Exiles | Met 8R-AWN 9223 | -9/Exiles | Met EX-HEX 9253 | -9/Exiles | Met EX-BIN 9264 | -9/Exiles | Aligned with FarCom system 9265 | -9/Exiles | Given EX-Vault access code 9400 | -9/Exiles | Met EX-DEC 9457 | -9/Exiles | Build established: Hacker-Mutant 9628 | -9/Exiles | Opened EX-Vault 9634 | -9/Exiles | Found Prototype Energy Gun 9641 | -9/Exiles | Found Prototype Processor 9665 | -9/Exiles | Warned to stay clear of 0b10 Research branches 9790 | -9/Exiles | Attacked by the Exiles 9903 | -9/Exiles | Found Prototype Ballistic Gun 9961 | -9/Exiles | Destroyed 8R-AWN 9965 | -9/Exiles | Found Prototype Processor 9965 | -9/Exiles | Identified Exp. Targeting Computer 9976 | -9/Exiles | Found Prototype Protection 9976 | -9/Exiles | Identified 8R-AWN's Armor/EX 9981 | -9/Exiles | Found Prototype Protection 9981 | -9/Exiles | Identified 8R-AWN's Armor/TH 9994 | -9/Exiles | Found Prototype Device 9994 | -9/Exiles | Identified AS-neutralizer No. 17b 10008 | -9/Exiles | Identified 8R-AWN's Boregun 10009 | -9/Exiles | Found 8R-AWN's Boregun 10118 | -9/Exiles | Destroyed EX-BIN 10147 | -9/Exiles | Destroyed EX-DEC 10177 | -9/Exiles | Found Prototype Device 10177 | -9/Exiles | Identified System Purifier 10190 | -9/Exiles | Found Prototype Processor 10190 | -9/Exiles | Identified Exp. Core Analyzer 10194 | -9/Exiles | Destroyed EX-HEX 10355 | -9/Exiles | Discovered new exit (range 14) 10369 | -9/Exiles | Build established: Scavenger-Mutant 10370 | -9/Exiles | Entered Mines 10444 | -8/Mines | Reached level 12 10465 | -8/Mines | AD-0RF came to Exiles' defense 10468 | -8/Mines | Destroyed 10 combat bots 10499 | -8/Mines | Destroyed AD-0RF 10561 | -8/Mines | Found Prototype Device 10561 | -8/Mines | Identified Exp. Thermal Shield 10577 | -8/Mines | Found Exp. Targeting Computer 10881 | -8/Mines | Discovered new exit (range 13) 10903 | -8/Mines | Entered Materials 10904 | -8/Materials | Identified exit to Storage 11018 | -8/Materials | Reached level 13 11067 | -8/Materials | Destroyed 8 combat bots 11129 | -8/Materials | Discovered new exit (range 3) 11303 | -8/Materials | First assault squad dispatched 11438 | -8/Materials | Discovered new exit (range 15) 11443 | -8/Materials | Destroyed 9 combat bots 11456 | -8/Materials | Identified exit to Factory 11509 | -8/Materials | Garrison activated, responded to threat 11531 | -8/Materials | Reached level 14 11565 | -8/Materials | Destroyed 8 combat bots 11597 | -8/Materials | Identified exit to Garrison 11597 | -8/Materials | Entered Garrison 11630 | -8/Garrison | Triggered checkpoint 11716 | -8/Garrison | Triggered checkpoint 11737 | -8/Garrison | Garrison Relay disabled 11842 | -8/Garrison | Triggered checkpoint 11930 | -8/Garrison | Triggered checkpoint 11989 | -8/Garrison | Discovered new exit (range 12) 11994 | -8/Garrison | Discovered new exit (range 16) 11994 | -8/Garrison | Discovered new exit (range 46) 11994 | -8/Garrison | Discovered new exit (range 57) 11994 | -8/Garrison | Identified exit to Materials 12016 | -8/Garrison | Triggered checkpoint 12064 | -8/Garrison | Garrison Relay disabled 12212 | -8/Garrison | Triggered checkpoint 12212 | -8/Garrison | Upgraded with Utility slot (x1) 12397 | -8/Garrison | Rescued a captive Derelict 12399 | -8/Garrison | Rescued a captive Derelict 12421 | -8/Garrison | Reached level 15 12422 | -8/Garrison | Triggered checkpoint 12518 | -8/Garrison | Spotted B-75 Beast 12544 | -8/Garrison | Destroyed B-75 Beast 12553 | -8/Garrison | Upgraded with Weapon slot (x1) 12554 | -8/Garrison | Upgraded with Power slot (x1) 12746 | -8/Garrison | Garrison Relay disabled 13071 | -8/Garrison | Entered Materials 13071 | -8/Materials | Accompanied by 5 allies 13071 | -8/Materials | Discovered exit to Storage (range 6) 13212 | -8/Materials | Central database locked down 13317 | -8/Materials | Garrison activated, responded to threat 13368 | -8/Materials | Discovered exit to Factory (range 13) 13371 | -8/Materials | Destroyed 12 combat bots 13384 | -8/Materials | Identified exit to Garrison 13384 | -8/Materials | Entered Garrison 13397 | -8/Garrison | Triggered checkpoint 13432 | -8/Garrison | Garrison Relay disabled 13451 | -8/Garrison | Identified exit to Materials 13810 | -8/Garrison | Triggered checkpoint 13821 | -8/Garrison | Destroyed 8 combat bots 13857 | -8/Garrison | Triggered checkpoint 13913 | -8/Garrison | Triggered checkpoint 13979 | -8/Garrison | Garrison Relay disabled 14076 | -8/Garrison | Triggered checkpoint 14245 | -8/Garrison | Core integrity fell below 50% 14363 | -8/Garrison | Garrison Relay disabled 14363 | -8/Garrison | Reached level 16 14507 | -8/Garrison | Triggered checkpoint 14544 | -8/Garrison | Rescued a captive Derelict 14597 | -8/Garrison | Discovered exit to Materials (range 75) 14597 | -8/Garrison | Discovered exit to Materials (range 51) 14597 | -8/Garrison | Discovered exit to Materials (range 6) 14799 | -8/Garrison | Entered Materials 14799 | -8/Materials | Accompanied by 1 ally 14831 | -8/Materials | Identified exit to Garrison 14831 | -8/Materials | Entered Garrison 14831 | -8/Garrison | Accompanied by 1 ally 14894 | -8/Garrison | Triggered checkpoint 14909 | -8/Garrison | Garrison Relay disabled 14909 | -8/Garrison | Garrison Relay disabled 15212 | -8/Garrison | Triggered checkpoint 15302 | -8/Garrison | Garrison Relay disabled 15445 | -8/Garrison | Triggered checkpoint 15514 | -8/Garrison | Discovered exit to Factory (range 12) 15524 | -8/Garrison | Discovered exit to Factory (range 12) 15524 | -8/Garrison | Discovered exit to Factory (range 45) 15524 | -8/Garrison | Discovered exit to Factory (range 49) 15580 | -8/Garrison | Triggered checkpoint 15676 | -8/Garrison | Spotted B-75 Beast 15686 | -8/Garrison | Destroyed B-75 Beast 15897 | -8/Garrison | Triggered checkpoint 15989 | -8/Garrison | Attempted to access garrison exit controls, blocked by remote lockdown 15992 | -8/Garrison | Build established: Hacker-Mutant 16186 | -8/Garrison | Entered Factory 16337 | -7/Factory | Fabricated Dispersion Rifle (x2) 16820 | -7/Factory | Build established: Scavenger-Mutant 16842 | -7/Factory | Reached level 17 16844 | -7/Factory | Found Rocket Array 16986 | -7/Factory | First assault squad dispatched 17270 | -7/Factory | Discovered new exit (range 16) 17394 | -7/Factory | Identified exit to Lower Caves 17434 | -7/Factory | Entered Lower Caves 17440 | -7/Lower Caves | Met a Warlord Commander 17441 | -7/Lower Caves | Learned location of Warlord (-5) 17445 | -7/Lower Caves | Found Encrypted Comm Array 17544 | -7/Lower Caves | Encountered a Warlord checkpoint 17876 | -7/Lower Caves | Discovered new exit (range 13) 17937 | -7/Lower Caves | Entered another Lower Caves area 17982 | -7/Lower Caves | Attracted the attention of an 0b10 checkpoint 18164 | -7/Lower Caves | Spotted B-75 Beast 18199 | -7/Lower Caves | Destroyed B-75 Beast 18266 | -7/Lower Caves | Encountered a Warlord checkpoint 18545 | -7/Lower Caves | Discovered new exit (range 9) 19429 | -7/Lower Caves | Learned location of 1 exit from Factory 19575 | -7/Lower Caves | Discovered new exit (range 11) 19982 | -7/Lower Caves | Entered Zion 19984 | -7/Zion | Reached level 18 19988 | -7/Zion | Upgraded with Utility slot (x1) 20016 | -7/Zion | Gained Derelict followers 20069 | -7/Zion | Acquired unknown access codes intercepted by a Zionite 20080 | -7/Zion | Discovered new exit (range 15) 20124 | -7/Zion | Found CR-A16's Pointy Stick 20399 | -7/Zion | Found Prototype Hackware 20400 | -7/Zion | Identified Exp. System Shield 20404 | -7/Zion | Found Prototype Processor 20405 | -7/Zion | Identified Exp. Armor Integrity Analyzer 20419 | -7/Zion | Found Exp. Targeting Computer 20590 | -7/Zion | Learned Factory emergency access door positions 20706 | -7/Zion | Build established: Hacker-Mutant 21299 | -7/Zion | Imprinted 21301 | -7/Zion | Declared Zion's savior 21548 | -7/Zion | Found Prototype Energy Gun 21548 | -7/Zion | Identified Storm Laser 21608 | -7/Zion | Entered Proximity Caves 21608 | -6/Proximity Caves | Accompanied by 8 allies 21767 | -6/Proximity Caves | Spotted B-75 Beast 21776 | -6/Proximity Caves | Destroyed B-75 Beast 21854 | -6/Proximity Caves | Build established: Hacker-Gunner 22020 | -6/Proximity Caves | Discovered new exit (range 5) 22047 | -6/Proximity Caves | Entered Factory 22047 | -6/Factory | Accompanied by 7 allies 22048 | -6/Factory | Identified exit to Lower Caves 22049 | -6/Factory | Reached level 19 22062 | -6/Factory | Upgraded with Weapon slot (x1) 22231 | -6/Factory | Retrieved Zion intel report: Branch Access 22246 | -6/Factory | Retrieved Zion intel report: Active Terminals 22356 | -6/Factory | Retrieved Zion intel report: Emergency Access 22357 | -6/Factory | Zion Fire squad teleported in 22500 | -6/Factory | Sucked down chute 22500 | -6/Factory | Entered Waste 22500 | -6/Waste | Met up with 2 allies sucked down the chute earlier 22501 | -6/Waste | Joined by Warlord forces that had cleared the area 22595 | -6/Waste | 7 allies followed down the chute 22652 | -6/Waste | Found Prototype Device 22652 | -6/Waste | Identified Adv. EM Disruption Field 22892 | -6/Waste | Found Unknown Protection 22936 | -6/Waste | Identified Damper Plating 22993 | -6/Waste | Discovered new exit (range 13) 23101 | -6/Waste | Entered Factory 23101 | -6/Factory | Accompanied by 29 allies 23164 | -6/Factory | Build established: Hacker-Tank 23172 | -6/Factory | Identified exit to Factory 23239 | -6/Factory | Identified exit to Garrison 23502 | -6/Factory | Retrieved Zion intel report: Branch Access 23605 | -6/Factory | Reached level 20 23620 | -6/Factory | Retrieved Zion intel report: Prototype Schematics 23685 | -6/Factory | Upgraded with Weapon slot (x1) 23801 | -6/Factory | First assault squad dispatched 23869 | -6/Factory | Garrison activated, responded to threat 23928 | -6/Factory | Entered Garrison 23928 | -6/Garrison | Accompanied by 14 allies 23952 | -6/Garrison | Triggered checkpoint 23991 | -6/Garrison | Build established: Scavenger-Executioner 24030 | -6/Garrison | Garrison Relay disabled 24036 | -6/Garrison | Triggered checkpoint 24100 | -6/Garrison | Triggered checkpoint 24114 | -6/Garrison | Triggered checkpoint 24115 | -6/Garrison | Reached level 21 24152 | -6/Garrison | Triggered checkpoint 24188 | -6/Garrison | Triggered checkpoint 24223 | -6/Garrison | Garrison Relay disabled 24315 | -6/Garrison | Discovered new exit (range 12) 24505 | -6/Garrison | Triggered checkpoint 24575 | -6/Garrison | Discovered new exit (range 8) 24598 | -6/Garrison | Triggered checkpoint 24623 | -6/Garrison | Garrison Relay disabled 24770 | -6/Garrison | Build established: Scavenger-Mutant 24796 | -6/Garrison | Discovered new exit (range 10) 24830 | -6/Garrison | Triggered checkpoint 25276 | -6/Garrison | Entered Factory 25276 | -6/Factory | Accompanied by 14 allies 25528 | -6/Factory | Discovered exit to Factory (range 16) 25626 | -6/Factory | First assault squad dispatched 25672 | -6/Factory | Retrieved Zion intel report: Emergency Access 25725 | -6/Factory | Spotted B-75 Beast 25726 | -6/Factory | Garrison activated, responded to threat 25727 | -6/Factory | Local machine network offline 25731 | -6/Factory | Reached level 22 25731 | -6/Factory | Allies destroyed B-75 Beast 25732 | -6/Factory | Upgraded with Utility slot (x1) 26424 | -6/Factory | High security lockdown imminent 26504 | -6/Factory | High security lockdown engaged 26724 | -6/Factory | Destroyed 10 combat bots 26724 | -6/Factory | Reached level 23 26750 | -6/Factory | Destroyed 7 combat bots 27022 | -6/Factory | Build established: Hacker-Executioner 27058 | -6/Factory | Destroyed 20 combat bots 27213 | -6/Factory | Destroyed 10 combat bots 27226 | -6/Factory | Cargo convoy interrupted 27276 | -6/Factory | Sterilization system engaged 27276 | -6/Factory | Non-combat units ordered to evacuate 27291 | -6/Factory | Core integrity fell below 50% 27315 | -6/Factory | Destroyed 10 combat bots 27376 | -6/Factory | Combat units ordered to evacuate 27451 | -6/Factory | Destroyed 19 combat bots 27576 | -6/Factory | Ambient heat levels rising (+10) 27581 | -6/Factory | Build established: Hacker-Gunner 27726 | -6/Factory | Ambient heat levels rising (+10) 27876 | -6/Factory | Ambient heat levels rising (+10) 28026 | -6/Factory | Ambient heat levels rising (+10) 28176 | -6/Factory | Ambient heat levels rising (+10) 28193 | -6/Factory | Discovered exit to Factory (range 15) 28267 | -6/Factory | Discovered exit to Factory (range 13) 28326 | -6/Factory | Ambient heat levels rising (+10) 28465 | -6/Factory | Build established: Hacker-Mutant 28476 | -6/Factory | Ambient heat levels rising (+10) 28603 | -6/Factory | Discovered exit to Lower Caves (range 15) 28626 | -6/Factory | Ambient heat levels rising (+10) 28633 | -6/Factory | Entered Lower Caves 28919 | -6/Lower Caves | Build established: Hacker-Tank 29042 | -6/Lower Caves | Discovered new exit (range 14) 29133 | -6/Lower Caves | Entered another Lower Caves area 29244 | -6/Lower Caves | Spotted B-75 Beast 29250 | -6/Lower Caves | Destroyed B-75 Beast 29381 | -6/Lower Caves | Encountered a Warlord checkpoint 29725 | -6/Lower Caves | Discovered new exit (range 7) 29744 | -6/Lower Caves | Learned location of Extension (-4) 29821 | -6/Lower Caves | Build established: Hacker-Gunner 30433 | -6/Lower Caves | Entered Data Miner 30433 | -6/Data Miner | Discovered new exit (range 6) 30464 | -6/Data Miner | Met Data Miner 30516 | -6/Data Miner | Received God Mode back door access code from Data Miner 30555 | -6/Data Miner | Entered Proximity Caves 30634 | -5/Proximity Caves | Escorted by Enhanced Grunt 30671 | -5/Proximity Caves | Attracted the attention of an 0b10 checkpoint 30807 | -5/Proximity Caves | Learned Factory machine intel 31199 | -5/Proximity Caves | Build established: Hacker-Mutant 31209 | -5/Proximity Caves | Spotted B-75 Beast 31219 | -5/Proximity Caves | Reached level 24 31219 | -5/Proximity Caves | Destroyed B-75 Beast 31476 | -5/Proximity Caves | Attracted the attention of an 0b10 base 31503 | -5/Proximity Caves | Build established: Hacker-Gunner 31528 | -5/Proximity Caves | Destroyed 9 combat bots 31534 | -5/Proximity Caves | Found Exp. Thermal Shield 31578 | -5/Proximity Caves | Learned location of 1 exit from Factory 31578 | -5/Proximity Caves | Learned location of 1 exit from Research 31578 | -5/Proximity Caves | Learned 8 Research zone layouts 31578 | -5/Proximity Caves | Learned Factory emergency access door positions 31578 | -5/Proximity Caves | Learned Extension stockpile data 31679 | -5/Proximity Caves | Entered Factory 31680 | -5/Factory | Identified exit to Factory 31681 | -5/Factory | Identified exit to Upper Caves 31683 | -5/Factory | Loaded intel: 272 machine locations 31866 | -5/Factory | Retrieved Zion intel report: Main Access 31933 | -5/Factory | Retrieved Zion intel report: Trap Installations 31934 | -5/Factory | Zion Fire squad teleported in 32144 | -5/Factory | Incoming investigation squad redirected 32195 | -5/Factory | Garrison activated, responded to threat 32746 | -5/Factory | Retrieved Zion intel report: Emergency Access 33118 | -5/Factory | Local machine network offline 33188 | -5/Factory | Terminal network hard line cut 33388 | -5/Factory | Garrison activated, responded to threat 33792 | -5/Factory | Reached level 25 33809 | -5/Factory | Upgraded with Utility slot (x1) 33833 | -5/Factory | Destroyed 9 combat bots 33933 | -5/Factory | Entered Upper Caves 34376 | -5/Upper Caves | Build established: Hacker-Executioner 34377 | -5/Upper Caves | Discovered new exit (range 9) 34416 | -5/Upper Caves | Entered another Upper Caves area 34436 | -5/Upper Caves | Discovered exit to Factory (range 16) 34533 | -5/Upper Caves | Attracted the attention of an 0b10 checkpoint 34945 | -5/Upper Caves | Build established: Hacker-Gunner 35310 | -5/Upper Caves | Discovered new exit (range 4) 35340 | -5/Upper Caves | Entered Warlord 35426 | -5/Warlord | System corruption cleaned by Quarantine Array 35509 | -5/Warlord | Build established: Hacker-Executioner 35568 | -5/Warlord | Found Prototype Device 35569 | -5/Warlord | Identified Minesniffer Drone Bay 35574 | -5/Warlord | Found Minesniffer Drone Bay 35692 | -5/Warlord | Found Prototype Energy Gun 35882 | -5/Warlord | Rebuked by Warlord 35907 | -5/Warlord | Warlord's base attacked by MAIN.C 36076 | -5/Warlord | Found Prototype Energy Cannon 36076 | -5/Warlord | Identified Vortex Driver 36080 | -5/Warlord | Found Vortex Driver 36234 | -5/Warlord | Build established: Scavenger-Mutant 36257 | -5/Warlord | Warlord forces counterattacked 36276 | -5/Warlord | Spotted Executioner 36276 | -5/Warlord | Destroyed Executioner 36333 | -5/Warlord | Spotted Executioner 36344 | -5/Warlord | Spotted Executioner 36345 | -5/Warlord | Destroyed Executioner 36360 | -5/Warlord | Destroyed Executioner 36422 | -5/Warlord | Spotted Executioner 36425 | -5/Warlord | Destroyed Executioner 36455 | -5/Warlord | Spotted Executioner 36457 | -5/Warlord | Destroyed Executioner 36467 | -5/Warlord | Spotted Executioner 36471 | -5/Warlord | Discovered new exit (range 9) 36473 | -5/Warlord | Found Prototype Device 36473 | -5/Warlord | Identified Adv. Kinecellerator 36477 | -5/Warlord | Found Prototype Processor 36477 | -5/Warlord | Identified Exp. Targeting Computer 36510 | -5/Warlord | Spotted Executioner 36546 | -5/Warlord | Found Corrupted Exp. Core Analyzer 36582 | -5/Warlord | Warlord base infiltrated, sounded retreat 36614 | -5/Warlord | Spotted Striker 36614 | -5/Warlord | Spotted Striker 36617 | -5/Warlord | Destroyed Striker 36620 | -5/Warlord | Spotted Executioner 36623 | -5/Warlord | Destroyed Executioner 36807 | -5/Warlord | Spotted Executioner 36811 | -5/Warlord | Core integrity fell below 50% 36811 | -5/Warlord | Spotted Striker 36822 | -5/Warlord | Destroyed Striker 36823 | -5/Warlord | Core integrity fell below 20% 36825 | -5/Warlord | Destroyed by G-67 Veteran with Field Laser Last Messages --------------- 36820_ G-67 Veteran destroyed. 36820_ Helical Railgun destroyed. 36821_ The unstable cave ceiling collapses. 36821_ G-50 Soldier crushed by falling debris. 36821_ The unstable cave ceiling collapses. 36821_ G-50 Soldier crushed by falling debris. 36821_ Penetrated by Slug. 36822_ Vortex penetrates Striker. 36822_ Striker suffers critical hit (Sunder). 36822_ Striker Prototype Protection ripped off. 36822_ Striker destroyed. 36822_ S-27 Virus suffers critical hit (Sunder). 36822_ S-27 Virus VTOL Module ripped off. 36822_ S-27 Virus destroyed. 36822_ Vortex penetrates Earth. 36822_ S-27 Virus destroyed. 36823_ Penetrated by Slug. 36823_ Slug penetrates Earth. 36823_ Penetrated by Slug. 36825_ G-50 Soldier destroyed. Map ----- +----------------------------------------------------+ | | | | | | | ????????????????????????????????? | | ????????????????????????????????? | | ????????????????????????????????? | | ????????????????????????????????? | | ????????????????????????????????? | | ????????????????????????????????? | | ???????????????????????????#????? | | ??????????????????????????? #???? | | ??????????????????????????? ##??? | | ?????????????????#????###?? ??? | | ????????????????## ??? ## #??? | | ????????????????# ??? #??? | | ????????????????? ?## =# | | ?????????? ????# ## %## | | ????????# ????? # %!%=## | | ????????# #????? # %%g